bitfinex/quotes_ETHUSD_20240714
["timestamp","ask_amount","ask_price","bid_price","bid_amount"]
[1720959788419,1.30091637,3204.2,3203.9,9.07167154]
[1720959788651,0.97565115,3204.0,3203.9,2.4969]
[1720959789438,0.97565115,3204.1,3203.9,2.4969]
[1720959789853,0.97565115,3204.0,3203.9,2.4969]
[1720959790160,0.97565115,3204.0,3203.4,9.07207154]
[1720959790161,0.97565115,3204.0,3203.5,2.49722]
[1720959790316,0.65017385,3203.8,3203.6,1.15692915]
[1720959790523,0.65017385,3203.9,3203.6,4.15692915]
[1720959790757,0.65017385,3203.9,3203.6,6.71653425]
[1720959790957,0.65017385,3204.0,3203.6,6.65410915]
[1720959791730,0.65017385,3204.0,3203.7,0.06242215]
[1720959791938,0.65017385,3204.1,3204.0,2.49687]
[1720959792259,0.97565115,3204.2,3204.0,2.49687]
[1720959792417,0.6497442,3204.1,3204.0,2.49687]
[1720959792819,0.6497442,3204.2,3204.0,2.49687]
[1720959793058,0.6497442,3204.3,3204.2,2.49672]
[1720959793265,0.97565115,3204.4,3204.2,2.49672]
[1720959793555,2.65269118,3204.5,3204.2,2.49672]
[1720959793764,2.65269118,3204.5,3204.1,2.4968]
[1720959793765,2.48904194,3204.4,3204.1,2.4968]
[1720959793968,0.97444619,3204.2,3204.1,2.4968]
[1720959794764,0.97444619,3204.3,3204.1,2.4968]
[1720959795767,0.97444619,3204.2,3204.1,2.4968]
[1720959796431,0.64945868,3204.2,3204.1,2.4968]
[1720959796959,1.29889766,3204.2,3204.1,2.4968]
[1720959797256,0.64945868,3204.2,3204.1,5.492973]
[1720959800340,1.29890541,3204.2,3204.1,4.9936]
[1720959800538,1.29890541,3204.2,3204.1,2.4968]
[1720959800737,0.64944673,3204.2,3204.1,2.4968]
[1720959800930,0.64944673,3204.3,3204.1,2.4968]
[1720959801644,1.08106419,3204.2,3204.1,2.4968]
[1720959801838,4.05641092,3204.2,3204.1,2.4968]
[1720959802136,3.40696419,3204.2,3204.1,2.4968]
[1720959802941,4.05633083,3204.2,3204.1,2.4968]
[1720959803126,2.97526664,3204.2,3204.1,2.4968]
[1720959803327,3.40700047,3204.2,3204.1,2.4968]
[1720959803567,4.05633919,3204.2,3204.1,2.4968]
[1720959803782,4.05633919,3204.2,3203.9,2.4969]
[1720959803933,0.64933872,3204.0,3203.7,2.49708]
[1720959804132,1.08110047,3203.9,3203.7,2.49708]
[1720959804365,0.97417009,3204.1,3203.7,2.49708]
[1720959804366,0.64933872,3204.4,3204.0,2.49687]
[1720959804569,1.08100315,3204.3,3204.2,2.4967]
[1720959804978,1.08100315,3204.3,3204.2,4.99342]
[1720959805265,0.64933872,3204.9,3204.6,2.49641]
[1720959805475,1.08079788,3204.8,3204.6,2.49641]
[1720959805643,1.08079788,3204.7,3204.6,2.49641]
[1720959806480,0.64933872,3204.8,3204.6,2.49641]
[1720959806678,1.08084285,3204.7,3204.6,2.49641]
[1720959806888,0.64933872,3204.8,3204.7,2.49633]
[1720959807344,1.73020598,3204.8,3204.7,2.49633]
[1720959808046,1.08085666,3204.8,3204.7,2.49633]
[1720959808377,2.2811,3205.2,3204.9,2.49617]
[1720959808378,0.64966619,3205.0,3204.9,2.49617]
[1720959808680,0.64966619,3205.0,3204.8,2.49621]
[1720959808975,1.7304331,3205.0,3204.8,2.49621]
[1720959809179,1.08076691,3204.9,3204.8,2.49621]
[1720959809385,0.97449929,3205.2,3205.0,2.49609]
[1720959809683,0.64995196,3205.1,3205.0,2.49609]
[1720959809890,1.73066237,3205.1,3205.0,2.49609]
[1720959810054,1.73066237,3205.1,3205.0,5.49141]
[1720959810241,0.64995196,3205.2,3205.1,4.99204]
[1720959810442,0.97492795,3205.4,3205.2,2.49594]
[1720959810443,0.64995196,3205.3,3205.2,2.49594]
[1720959810746,1.08066124,3205.3,3205.1,2.49602]
[1720959810974,1.73076623,3205.2,3205.1,2.49602]
[1720959811152,2.05558919,3205.2,3205.1,2.49602]
[1720959811644,2.05591934,3205.2,3205.1,2.49602]
[1720959811845,1.08066124,3205.2,3205.1,2.49602]
[1720959812039,2.05591934,3205.2,3205.1,2.49602]
[1720959812906,0.9752581,3205.2,3205.1,2.49602]
[1720959813051,1.08069906,3205.2,3205.1,2.49602]
[1720959813396,2.05595716,3205.2,3205.1,2.49602]
[1720959813595,2.05665207,3205.2,3205.1,2.49602]
[1720959813763,0.97595301,3205.2,3205.1,2.49602]
[1720959814156,0.97595301,3205.3,3205.2,4.99188]
[1720959814458,0.65069442,3205.4,3205.3,2.49586]
[1720959814686,0.97744952,3205.5,3205.4,4.99156]
[1720959814904,0.3267551,3205.5,3205.4,4.99156]
[1720959815055,0.97752309,3205.5,3205.4,4.99156]
[1720959815250,0.3267551,3205.5,3205.4,5.490716]
[1720959815570,0.97595301,3205.7,3205.6,2.49563]
[1720959815752,0.97595301,3205.7,3205.6,4.99126]
[1720959816170,0.10857957,3205.8,3205.7,2.49555]
[1720959816355,2.60782252,3206.4,3205.6,2.49563]
[1720959816356,1.62733282,3206.0,3205.8,2.49547]
[1720959816662,1.18910076,3205.9,3205.8,2.49547]
[1720959817001,1.41054847,3205.9,3205.8,2.49547]
[1720959817307,1.62733282,3206.1,3205.9,4.99078]
[1720959817589,1.62733282,3206.1,3206.0,2.49532]
[1720959817590,0.97647134,3206.1,3206.0,2.49532]
[1720959817893,0.97647134,3206.2,3206.1,2.49524]
[1720959818058,0.10856247,3206.2,3206.1,2.49524]
[1720959818256,0.97609107,3206.2,3205.8,2.49545]
[1720959818497,0.6507274,3205.9,3205.8,2.49545]
[1720959818693,0.97607081,3206.0,3205.9,2.49539]
[1720959819257,0.97607081,3206.0,3205.8,2.49545]
[1720959819497,0.97607081,3205.9,3205.8,2.49545]
[1720959820601,0.97607081,3205.9,3205.5,2.49564]
[1720959820805,0.97607081,3205.9,3205.1,2.49601]
[1720959820806,1.30196877,3205.7,3205.1,2.49601]
[1720959820990,0.65031399,3205.4,3205.3,2.49586]
[1720959821509,0.97547191,3205.4,3205.1,2.49596]
[1720959821708,0.65021152,3205.2,3205.1,2.49596]
[1720959821876,0.65021152,3205.2,3205.1,2.47096]
[1720959822863,0.65021152,3205.2,3205.0,2.49607]
[1720959825206,0.97547191,3205.2,3205.0,2.49607]
[1720959825420,0.97547191,3205.2,3204.5,6.57477154]
[1720959825421,0.97547191,3205.1,3204.6,2.49639]
[1720959825625,0.65012636,3204.8,3204.6,2.49639]
[1720959825766,0.65012636,3204.7,3204.6,2.49639]
[1720959825966,0.65012636,3204.8,3204.6,2.49639]
[1720959826371,0.65012636,3204.7,3204.6,2.49639]
[1720959826690,0.65012636,3204.8,3204.6,2.49639]
[1720959826890,0.65012636,3204.7,3204.6,2.49639]
[1720959828205,0.97518955,3204.9,3204.8,2.49625]
[1720959830681,0.65037987,3204.9,3204.8,2.49625]
[1720959831489,0.65037987,3205.0,3204.8,2.49625]
[1720959831900,0.65037987,3204.9,3204.8,2.49625]
[1720959833108,0.97518955,3205.0,3204.8,2.49625]
[1720959833309,0.97518955,3204.9,3204.8,2.49625]
[1720959833513,2.05604891,3204.9,3204.5,2.49645]
[1720959833673,0.65040822,3204.7,3204.5,2.49645]
[1720959833870,0.65040822,3204.7,3204.2,19.42]
[1720959833871,0.65040822,3204.6,3204.2,22.52]
[1720959834077,0.65040822,3204.6,3203.7,9.07180154]
[1720959834078,0.65040822,3204.4,3203.7,9.07180154]
[1720959834321,0.65040822,3204.1,3203.7,12.17180154]
[1720959834620,0.65021192,3203.9,3203.7,6.57477154]
[1720959834775,0.65021192,3203.8,3203.7,6.57477154]
[1720959835120,1.0812301,3203.8,3203.7,6.57477154]
[1720959835270,0.10865424,3204.0,3203.7,6.57477154]
[1720959835484,2.05662433,3203.9,3203.7,6.57477154]
[1720959835724,0.97535924,3203.9,3203.7,6.57477154]
[1720959836314,3.47280842,3203.8,3203.4,19.42]
[1720959836647,0.97503458,3203.5,3203.4,19.42]
[1720959836804,0.97503458,3203.5,3203.1,2.49755]
[1720959836805,2.49001335,3203.5,3203.1,2.00779479]
[1720959837123,0.65001749,3203.2,3203.1,2.00779479]
[1720959837833,0.97502624,3203.3,3203.0,6.57477154]
[1720959837981,0.64977006,3203.1,3203.0,6.57477154]
[1720959838188,3.04127006,3203.1,3203.0,6.57477154]
[1720959838819,3.04102666,3203.1,3203.0,6.57477154]
[1720959839009,2.3915,3203.1,3203.0,6.57477154]
[1720959839196,2.3915,3203.1,3202.6,2.49796]
[1720959839399,3.04072745,3203.1,3202.5,2.49804]
[1720959839723,3.04072745,3203.1,3202.3,6.57477154]
[1720959839724,0.64922745,3202.8,3202.4,3.1]
[1720959839923,0.64922745,3202.7,3202.4,3.1]
[1720959840411,0.64922745,3202.8,3202.4,3.1]
[1720959840723,0.64922745,3202.9,3202.4,3.1]
[1720959842502,0.64922745,3203.0,3202.4,3.1]
[1720959842826,1.34377495,3203.0,3202.4,3.1]
[1720959843040,0.64922745,3203.0,3202.4,3.1]
[1720959843407,5.53831745,3203.1,3202.4,3.1]
[1720959844204,5.53831745,3203.1,3202.4,5.59811]
[1720959844409,4.88909,3203.1,3202.4,5.59811]
[1720959845328,2.49768,3203.0,3202.4,3.1]
[1720959845549,2.49768,3203.0,3202.3,9.07295154]
[1720959845550,0.07806347,3202.9,3202.3,9.07295154]
[1720959845713,3.7007392,3203.0,3202.3,9.07295154]
[1720959846348,0.40487761,3202.9,3202.3,9.07295154]
[1720959846550,0.32681417,3202.9,3202.3,9.07295154]
[1720959847329,0.32681417,3202.9,3202.5,2.498]
[1720959847548,0.32681417,3202.9,3202.7,2.49785]
[1720959847907,0.32681417,3202.9,3202.5,2.498]
[1720959848218,0.32681417,3202.9,3202.8,4.99562]
[1720959848959,2.4215,3203.5,3202.9,2.49772]
[1720959849118,3.0109644,3203.5,3202.9,2.49772]
[1720959851330,2.4215,3203.5,3202.9,2.49772]
[1720959853448,2.4215,3203.5,3202.7,2.49787]
[1720959853652,2.49736,3203.4,3202.6,2.49794]
[1720959853822,0.07805557,3203.3,3202.4,2.49809]
[1720959854027,2.49757,3203.2,3202.4,5.49809]
[1720959854271,2.49757,3203.2,3202.5,3.09157673]
[1720959854672,2.49757,3203.2,3202.5,2.49803]
[1720959858558,2.49757,3203.2,3202.6,2.49796]
[1720959858757,2.4215,3203.5,3202.6,2.49796]
[1720959859059,1.08159084,3203.4,3202.8,2.49776]
[1720959859364,0.63271074,3203.4,3202.8,2.49776]
[1720959859535,0.32679658,3203.6,3203.0,2.49758]
[1720959860425,0.32679658,3203.6,3203.4,2.49729]
[1720959861269,0.32679658,3203.6,3203.5,2.49726]
[1720959861970,0.32679658,3203.6,3203.5,2.996715]
[1720959862179,0.32679658,3203.6,3203.5,5.55639846]
[1720959862468,0.32679658,3203.6,3203.5,5.493975]
[1720959862636,2.4215,3204.4,3203.9,2.49693]
[1720959862835,0.32676772,3204.1,3203.9,2.49693]
[1720959863470,1.08118849,3204.0,3203.9,2.49693]
[1720959863769,1.08118394,3204.0,3203.9,2.49693]
[1720959863972,1.08120758,3204.0,3203.9,2.49693]
[1720959864336,1.08118081,3204.0,3203.9,2.49693]
[1720959864562,0.32676772,3204.1,3203.9,2.49693]
[1720959864761,0.32676772,3204.1,3204.0,2.49687]
[1720959864938,0.32676772,3204.1,3204.0,4.99374]
[1720959866477,0.32676772,3204.1,3204.0,5.05615505]
[1720959866835,0.32676772,3204.1,3204.0,4.99374]
[1720959867538,0.3267522,3204.8,3204.4,2.49654]
[1720959867740,1.08104815,3204.7,3204.4,2.49654]
[1720959868066,1.08104815,3204.6,3204.4,2.49654]
[1720959868270,1.08104815,3204.7,3204.4,2.49654]
[1720959868464,0.3267522,3204.8,3204.4,2.49654]
[1720959871741,0.66162764,3204.8,3204.4,2.49654]
[1720959872543,0.3267522,3204.8,3204.4,2.49654]
[1720959873805,0.97405435,3204.8,3204.4,2.49654]
[1720959873985,0.3267522,3204.8,3204.4,2.49654]
[1720959875310,0.97405435,3204.8,3204.4,2.49654]
[1720959876477,0.97534648,3204.8,3204.4,2.49654]
[1720959876676,1.40764027,3204.8,3204.0,9.07160154]
[1720959876873,0.64851876,3204.6,3204.0,9.07160154]
[1720959877308,0.64851876,3204.5,3204.0,9.07160154]
[1720959878502,0.64851876,3204.4,3204.0,2.49683]
[1720959878705,0.64851876,3204.4,3204.1,2.49679]
[1720959882994,0.97532183,3204.4,3204.1,2.49679]
[1720959884114,0.32680307,3204.4,3204.1,2.49679]
[1720959884416,0.97532183,3204.4,3204.1,2.49679]
[1720959885185,0.32680307,3204.4,3204.3,4.99328]
[1720959885387,1.62219069,3205.1,3204.3,4.99328]
[1720959885388,0.64851876,3205.0,3204.8,2.49618]
[1720959885692,0.64851876,3205.1,3204.8,2.49618]
[1720959885906,2.3374,3205.4,3204.8,2.49618]
[1720959886217,0.64887053,3205.0,3204.8,2.49618]
[1720959886528,1.72977744,3204.9,3204.8,2.49618]
[1720959886910,1.72977744,3204.9,3204.6,2.49641]
[1720959887097,0.64887053,3204.9,3204.6,2.49641]
[1720959887537,1.08092918,3204.8,3204.6,2.49641]
[1720959887823,0.17297997,3204.8,3204.3,28.49141154]
[1720959888138,0.64887053,3204.5,3204.3,25.99477154]
[1720959888432,1.72997304,3204.4,3204.3,25.99477154]
[1720959888987,0.64887053,3204.4,3204.3,25.99477154]
[1720959889186,1.72964437,3204.4,3204.3,25.99477154]
[1720959889620,1.72967273,3204.4,3204.3,25.99477154]
[1720959890398,1.72967273,3204.4,3204.1,2.49679]
[1720959890399,1.08110658,3204.4,3204.1,2.49679]
[1720959890624,1.72954354,3204.3,3204.1,2.49679]
[1720959890803,1.08110658,3204.2,3204.1,2.49679]
[1720959891199,1.08110658,3204.3,3204.1,2.49679]
[1720959891405,1.08110658,3204.2,3204.1,2.49679]
[1720959892297,0.64843696,3204.3,3204.1,2.49679]
[1720959892524,1.08108433,3204.2,3204.1,2.49679]
[1720959893719,1.72952129,3204.2,3203.9,3.1]
[1720959893918,1.7300022,3204.1,3203.9,3.1]
[1720959894126,1.7300022,3204.0,3203.9,3.1]
[1720959894507,1.08108433,3204.0,3203.9,3.1]
[1720959894843,1.5422166,3204.0,3203.9,3.1]
[1720959895025,1.65006875,3204.0,3203.9,3.1]
[1720959895546,2.62343877,3204.0,3203.9,3.1]
[1720959895753,2.0545513,3204.0,3203.9,3.1]
[1720959896046,2.0545513,3204.0,3203.6,9.07194154]
[1720959896047,1.73020276,3204.0,3203.6,9.07194154]
[1720959896350,1.08118128,3203.9,3203.6,9.07194154]
[1720959896552,1.08118128,3203.8,3203.6,9.07194154]
[1720959896756,0.64902148,3204.0,3203.6,9.07194154]
[1720959897044,1.73018744,3203.9,3203.6,9.07194154]
[1720959897206,1.08116596,3203.8,3203.6,9.07194154]
[1720959897409,0.64902148,3204.0,3203.6,9.07194154]
[1720959897751,1.08117054,3203.9,3203.6,9.07194154]
[1720959897946,0.64902148,3204.0,3203.6,9.07194154]
[1720959898123,1.08117027,3203.9,3203.6,9.07194154]
[1720959898310,0.64902148,3204.0,3203.6,9.07194154]
[1720959898506,1.73019149,3203.9,3203.6,9.07194154]
[1720959898744,1.08117001,3203.8,3203.6,9.07194154]
[1720959898929,0.64902148,3203.9,3203.6,9.07194154]
[1720959899130,1.73019614,3203.8,3203.6,9.07194154]
[1720959899340,1.08117466,3203.7,3203.4,2.49732]
[1720959899551,0.64902148,3203.6,3203.4,2.49732]
[1720959899705,1.08117466,3203.7,3203.4,2.49732]
[1720959899706,1.73019614,3203.7,3203.4,2.49732]
[1720959899911,0.64902148,3203.7,3203.4,2.49732]
[1720959900135,0.64902148,3203.7,3203.6,2.49719]
[1720959900311,1.7302671,3203.7,3203.6,3.04719]
[1720959901412,1.08126218,3203.7,3203.6,3.04719]
[1720959901649,1.73133529,3203.7,3203.6,3.04719]
[1720959901871,1.73129386,3203.7,3203.6,2.49719]
[1720959902044,0.65007311,3203.7,3203.6,2.49719]
[1720959902407,0.97337002,3203.8,3203.7,2.49711]
[1720959902923,2.05457178,3203.8,3203.7,2.49711]
[1720959903647,1.08120176,3203.8,3203.7,2.49711]
[1720959903858,1.31910461,3203.8,3203.4,2.49732]
[1720959904058,1.30132956,3203.6,3203.4,2.49732]
[1720959904217,2.0571563,3203.5,3203.4,2.49732]
[1720959904414,1.30132956,3203.6,3203.4,2.49732]
[1720959905425,2.38263252,3203.5,3203.4,2.49732]
[1720959905762,2.49129043,3203.5,3203.4,2.49732]
[1720959906315,1.40998747,3203.5,3203.4,2.49732]
[1720959906615,2.49129422,3203.5,3203.4,2.49732]
[1720959907040,1.18996466,3203.5,3203.4,2.49732]
[1720959907353,1.3024629,3203.5,3203.4,2.49732]
[1720959907646,1.41112081,3203.5,3203.4,2.49732]
[1720959907857,1.38524632,3203.5,3203.2,2.49744]
[1720959908024,1.62813297,3203.3,3203.2,2.49744]
[1720959908229,2.81810437,3203.3,3203.2,2.49744]
[1720959908415,2.81765678,3203.3,3203.2,2.49744]
[1720959909513,2.81765678,3203.3,3203.1,6.57477154]
[1720959909816,1.19016667,3203.2,3203.1,6.57477154]
[1720959910045,2.70877786,3203.2,3203.1,6.57477154]
[1720959910216,1.19016667,3203.2,3203.1,6.57477154]
[1720959910647,0.10865791,3203.2,3203.1,6.57477154]
[1720959910967,1.62663601,3203.2,3203.1,6.57477154]
[1720959911146,2.70812901,3203.2,3202.9,21.91771]
[1720959911347,1.40995916,3203.1,3202.9,21.91771]
[1720959911583,0.10865791,3203.0,3202.9,21.91771]
[1720959911817,0.10865791,3203.0,3202.9,0.55]
[1720959911947,0.10865791,3203.0,3202.8,2.4978]
[1720959911948,1.40995916,3203.0,3202.8,2.4978]
[1720959912263,0.97567426,3202.9,3202.8,2.4978]
[1720959912465,0.97567426,3202.9,3202.8,3.0478]
[1720959912884,1.5289988,3202.9,3202.5,11.57079154]
[1720959913045,1.30045203,3202.8,3202.6,0.55]
[1720959913385,0.1086904,3202.7,3202.6,0.55]
[1720959913565,1.30045203,3202.8,3202.6,0.55]
[1720959913767,0.97496235,3202.7,3202.6,0.55]
[1720959914180,0.10868922,3202.7,3202.6,0.55]
[1720959914381,0.97464133,3202.7,3202.6,0.55]
[1720959914592,0.97463188,3202.7,3202.6,0.55]
[1720959915044,0.6497881,3202.7,3202.6,3.04796]
[1720959915245,0.6497881,3202.9,3202.6,6.20453215]
[1720959915482,0.6497881,3202.9,3202.6,3.70657215]
[1720959915696,0.6497881,3203.0,3202.9,2.49773]
[1720959915986,0.6497881,3203.1,3203.0,2.49765]
[1720959916143,0.6497881,3203.1,3202.9,3.04773]
[1720959916343,0.64971531,3203.1,3203.0,0.55]
[1720959916563,0.64971531,3203.2,3203.0,3.04765]
[1720959916777,0.64971531,3203.3,3203.2,2.4757]
[1720959917084,0.64971531,3203.3,3203.2,3.0475]
[1720959917739,0.64971531,3203.4,3203.2,2.4975]
[1720959918339,0.64971531,3203.3,3203.2,2.4975]
[1720959919048,0.64971531,3203.3,3203.2,4.995]
[1720959919245,0.64971531,3203.4,3203.3,4.97312]
[1720959919486,0.64971531,3203.6,3203.3,6.0257]
[1720959919650,0.97647379,3203.7,3203.6,2.49719]
[1720959919852,0.64971531,3203.7,3203.6,5.54438]
[1720959920248,0.97463188,3203.8,3203.6,3.601628]
[1720959920554,0.97463188,3203.8,3203.7,0.55]
[1720959921446,0.97463188,3203.8,3203.7,3.04711]
[1720959922546,0.97463188,3203.8,3203.6,2.49719]
[1720959922781,0.10865576,3203.7,3203.6,2.49719]
[1720959922999,2.48944221,3203.7,3203.4,2.49729]
[1720959923149,2.48944221,3203.7,3203.3,5.49736]
[1720959923150,0.97451966,3203.6,3203.5,2.49721]
[1720959923475,0.97456868,3203.6,3203.5,2.49721]
[1720959923948,0.97456868,3203.8,3203.7,2.49711]
[1720959924381,2.05583683,3203.8,3203.7,2.49711]
[1720959924546,1.18987855,3203.8,3203.7,2.49711]
[1720959924879,1.29942491,3203.9,3203.7,2.49711]
[1720959925092,0.97459033,3203.8,3203.7,2.49711]
[1720959925947,1.18989592,3203.8,3203.7,2.49711]
[1720959926288,0.97465094,3203.8,3203.7,2.49711]
[1720959926485,3.83848071,3203.8,3203.3,5.49739]
[1720959926650,0.64974955,3203.4,3203.3,2.49739]
[1720959927268,0.64974955,3203.5,3203.3,2.49739]
[1720959927468,0.64974955,3203.4,3203.3,2.49739]
[1720959928705,0.97462432,3203.6,3203.4,2.49734]
[1720959928877,0.97462432,3203.5,3203.4,2.49734]
[1720959929876,0.97462432,3203.6,3203.4,2.49734]
[1720959932111,0.97462432,3203.5,3203.4,2.49734]
[1720959933620,1.40808524,3203.5,3203.4,2.49734]
[1720959934590,2.48941322,3203.5,3203.4,2.49734]
[1720959934791,2.81554249,3203.5,3203.4,2.49734]
[1720959935736,3.89274256,3203.5,3203.0,6.57477154]
[1720959935874,2.9283663,3203.1,3203.0,6.57477154]
[1720959936080,1.08132798,3203.1,3203.0,6.57477154]
[1720959936279,1.19023669,3203.1,3203.0,6.57477154]
[1720959936681,1.62612712,3203.1,3203.0,6.57477154]
[1720959936901,1.19023669,3203.1,3203.0,6.57477154]
[1720959939511,1.19022709,3203.1,3203.0,6.57477154]
[1720959939897,2.70819102,3203.1,3203.0,6.57477154]
[1720959940100,2.81685135,3203.1,3203.0,6.57477154]
[1720959940919,2.81685135,3203.1,3202.9,2.49767]
[1720959941095,1.40995185,3203.0,3202.9,2.49767]
[1720959941291,1.30129152,3203.0,3202.9,2.49767]
[1720959941802,1.40995185,3203.0,3202.9,2.49767]
[1720959942006,0.10866033,3203.0,3202.9,2.49767]
[1720959942205,1.30129152,3203.1,3203.0,2.49765]
[1720959942412,1.40996621,3203.1,3203.0,2.49765]
[1720959942622,0.10867469,3203.1,3203.0,2.49765]
[1720959942992,1.30129152,3203.1,3203.0,2.49765]
[1720959943219,1.40996621,3203.1,3203.0,2.49765]
[1720959943931,0.97630233,3203.1,3203.0,5.494846]
[1720959944087,0.97630233,3203.1,3203.0,6.044846]
[1720959944290,0.65088902,3203.1,3203.0,6.044846]
[1720959944619,0.65097531,3203.2,3203.1,4.99516]
[1720959944820,0.97630233,3203.4,3203.1,3.6520506]
[1720959945117,0.65098268,3203.2,3203.1,5.5996306]
[1720959945314,0.65098268,3203.2,3203.1,6.1496306]
[1720959946146,0.65098268,3203.2,3203.1,6.21206334]
[1720959946293,0.65098268,3203.4,3203.1,10.9594506]
[1720959946490,0.65098268,3203.4,3203.3,4.99484]
[1720959946709,0.65098268,3203.4,3203.3,5.54484]
[1720959946926,0.97630233,3203.5,3203.4,4.99468]
[1720959947102,0.10865101,3203.5,3203.4,3.04734]
[1720959947306,1.30129152,3203.6,3203.5,2.49726]
[1720959947520,2.38256423,3203.6,3203.5,3.05172]
[1720959947701,2.49121946,3203.6,3203.5,2.49726]
[1720959947919,1.18992794,3203.6,3203.5,2.49726]
[1720959948124,2.49203291,3203.6,3203.5,2.49726]
[1720959948858,1.18992794,3203.6,3203.5,2.49726]
[1720959949056,1.18995914,3203.6,3203.5,2.49726]
[1720959949865,2.3836089,3203.6,3203.5,2.49726]
[1720959950156,1.18995914,3203.6,3203.5,2.49726]
[1720959950366,1.18995914,3203.6,3203.2,2.49748]
[1720959950524,1.3022452,3203.4,3203.2,5.49748]
[1720959950717,1.41090043,3203.4,3203.2,2.49748]
[1720959950922,1.41090043,3203.3,3203.2,2.49748]
[1720959952341,1.41090043,3203.3,3203.2,3.296991]
[1720959952641,1.41090043,3203.3,3203.2,6.846991]
[1720959953323,1.41090043,3203.3,3203.2,6.04748]
[1720959953965,0.97659353,3203.3,3203.2,6.04748]
[1720959954421,0.97659353,3203.3,3203.2,8.54498]
[1720959954624,0.97659353,3203.4,3203.3,2.49742]
[1720959954883,0.97659353,3203.5,3203.4,4.99468]
[1720959955028,1.3022452,3203.6,3203.5,2.49726]
[1720959955231,1.3022452,3203.6,3203.5,3.04726]
[1720959955429,1.3022452,3203.6,3203.5,8.54452]
[1720959955751,1.3022452,3203.7,3203.6,2.49719]
[1720959955952,1.41089705,3203.7,3203.6,2.49719]
[1720959956154,1.41089705,3203.7,3203.6,4.99438]
[1720959956344,0.10865185,3203.7,3203.6,5.54438]
[1720959956838,0.10865185,3203.7,3203.6,5.60680353]
[1720959957095,0.10865185,3203.7,3203.6,5.54438]
[1720959957375,0.10865185,3203.7,3203.6,6.4897648]
[1720959957675,0.97643645,3203.7,3203.6,6.4897648]
[1720959958044,1.3022452,3203.8,3203.7,2.49711]
[1720959958239,1.41089395,3203.8,3203.7,2.49711]
[1720959958958,0.10864875,3203.8,3203.7,4.99422]
[1720959959185,1.41089395,3203.8,3203.7,5.94318048]
[1720959962090,0.97679061,3203.8,3203.7,6.49318048]
[1720959963270,0.97680122,3203.8,3203.7,6.49318048]
[1720959963667,1.3022452,3204.0,3203.8,4.99406]
[1720959963668,0.97680122,3203.9,3203.8,4.99406]
[1720959963844,0.97680122,3203.9,3203.8,5.54406]
[1720959964684,1.3022452,3204.0,3203.9,4.9939]
[1720959964984,1.95325818,3204.3,3204.0,2.49687]
[1720959965191,1.18979076,3204.2,3204.1,2.49679]
[1720959965490,1.62559132,3204.2,3204.1,2.49679]
[1720959965785,1.18979076,3204.2,3204.1,2.49679]
[1720959966746,1.18979076,3204.2,3203.9,2.49695]
[1720959966948,1.30185779,3204.0,3203.9,2.49695]
[1720959967185,1.41050054,3204.0,3203.9,2.49695]
[1720959969289,2.49162167,3204.0,3203.9,2.49695]
[1720959969607,1.18976388,3204.0,3203.9,2.49695]
[1720959969991,1.18976388,3204.0,3203.7,4.99414]
[1720959970327,1.30276272,3203.8,3203.7,4.99414]
[1720959970500,2.4925266,3203.8,3203.7,4.99414]
[1720959970839,1.41140547,3203.8,3203.7,4.99414]
[1720959971026,1.18986361,3203.8,3203.7,2.49705]
[1720959972170,2.38393214,3203.8,3203.7,2.49705]
[1720959972445,2.49257594,3203.8,3203.7,2.49705]
[1720959972660,2.49257594,3203.8,3203.5,2.49724]
[1720959972950,2.81826274,3203.7,3203.5,2.49724]
[1720959973161,1.18986466,3203.6,3203.5,2.49724]
[1720959973610,2.81826274,3203.6,3203.0,5.49759]
[1720959973815,0.97678774,3203.3,3203.1,5.49757]
[1720959974222,0.97678774,3203.3,3203.1,2.49757]
[1720959975105,0.97678774,3203.3,3203.2,2.4975]
[1720959975310,0.97678774,3203.3,3203.2,6.0475]
[1720959975511,1.30238366,3203.5,3203.2,6.0475]
[1720959975807,2.05810028,3203.4,3203.3,2.49742]
[1720959976047,0.10865931,3203.4,3203.3,2.49742]
[1720959976654,3.36051885,3203.4,3203.3,2.49742]
[1720959976854,3.36051885,3203.4,3202.9,25.99477154]
[1720959976855,2.3861,3203.3,3202.9,9.67477154]
[1720959977009,1.62763801,3203.0,3202.6,21.91791]
[1720959977364,0.97653487,3202.7,3202.6,21.91791]
[1720959978150,0.97653487,3202.7,3202.6,24.76717815]
[1720959978349,0.65088078,3202.7,3202.6,24.76717815]
[1720959978735,0.97653487,3202.8,3202.7,2.49789]
[1720959979120,0.97653487,3202.8,3202.7,3.04789]
[1720959980717,0.10868602,3202.8,3202.7,3.04789]
[1720959980920,2.38363756,3202.8,3202.6,19.42]
[1720959981165,2.49156664,3202.7,3202.6,19.42]
[1720959981332,0.97575861,3202.7,3202.6,19.42]
[1720959981526,0.97575861,3202.7,3202.6,21.91797]
[1720959981846,0.97575861,3202.7,3202.6,25.01705515]
[1720959982518,0.10868659,3202.7,3202.6,5.59705515]
[1720959982742,0.10868659,3202.7,3202.6,2.49797]
[1720959983140,0.97575684,3202.7,3202.6,2.49797]
[1720959983345,0.97575684,3202.7,3202.6,5.54594]
[1720959983740,1.30100845,3202.9,3202.8,2.49776]
[1720959984148,1.40969142,3202.9,3202.8,2.49776]
[1720959985069,0.10868297,3202.9,3202.8,2.49776]
[1720959987346,1.30100845,3203.0,3202.9,2.49773]
[1720959992347,0.10867998,3203.0,3202.9,2.49773]
[1720959996791,1.08365081,3203.0,3202.9,5.495021]
[1720959997091,0.97497083,3203.0,3202.9,5.495021]
[1720959997793,0.97497083,3203.1,3203.0,2.49765]
[1720959998181,2.38142131,3203.1,3203.0,2.49765]
[1720959998493,2.05646106,3203.1,3203.0,2.49765]
[1720959998691,2.05646106,3203.1,3203.0,5.5447941]
[1720959998899,0.65018592,3203.3,3203.0,7.7832441]
[1720959999207,0.65018592,3203.5,3203.4,4.99468]
[1720959999381,0.65018592,3203.5,3203.4,5.54468]
[1720960000521,0.97527889,3203.6,3203.5,2.49726]
[1720960000708,0.97527889,3203.6,3203.5,3.05172]
[1720960001031,0.97527889,3203.7,3203.6,2.49719]
[1720960001524,0.97527889,3203.7,3203.6,4.99438]
[1720960001691,0.97527889,3203.8,3203.7,2.49711]
[1720960001895,0.10864754,3203.8,3203.6,2.49719]
[1720960002084,0.9753952,3203.7,3203.6,5.354545]
[1720960003331,0.9753952,3203.8,3203.7,2.49711]